fUSD/lending_fUSD_20260202
["ID","MTS","AMOUNT","RATE_DAILY","PERIOD"]
[404265891,1770016245227,-559.67308476,0.00015473,2]
[404265892,1770016245237,-501.33451157,0.00015473,2]
[404265893,1770016245247,-500.6120606,0.00015473,2]
[404265894,1770016245257,-500.62768041,0.00015473,2]
[404265895,1770016245266,-163.12661798,0.00015473,2]
[404265896,1770016245276,-500.46237197,0.00015473,2]
[404265897,1770016245286,-163.34993731,0.00015473,2]
[404265898,1770016245295,-500.0,0.00015473,2]
[404265899,1770016245305,-500.0,0.00015473,2]
[404265900,1770016245315,-500.0,0.00015473,2]
[404265901,1770016245324,-486.90150068,0.00015473,2]
[404265902,1770016245335,-151.07783782,0.00015473,2]
[404265904,1770016245344,-500.0,0.00015473,2]
[404265906,1770016245354,-500.0,0.00015473,2]
[404265908,1770016245363,-500.40906893,0.00015473,2]
[404265909,1770016245373,-500.0,0.00015473,2]
[404265910,1770016245387,-464.35211832,0.00015473,2]
[404265911,1770016245398,-500.0,0.00015473,2]
[404265912,1770016245408,-160.54295648,0.00015473,2]
[404265913,1770016245417,-500.0,0.00015473,2]
[404265914,1770016245426,-512.94754167,0.00015473,2]
[404265915,1770016245437,-500.41005015,0.00015473,2]
[404265916,1770016245449,-500.0,0.00015473,2]
[404265917,1770016245459,-500.0,0.00015473,2]
[404265918,1770016245469,-574.06272579,0.00015473,2]
[404265919,1770016245478,-511.82569439,0.00015473,2]
[404265920,1770016245488,-500.0,0.00015473,2]
[404265921,1770016245498,-500.0,0.00015473,2]
[404265922,1770016245507,-500.0,0.00015473,2]
[404265923,1770016245519,-185.46503654,0.00015473,2]
[404265924,1770016245528,-500.0,0.00015473,2]
[404265925,1770016245538,-500.0,0.00015473,2]
[404265926,1770016245547,-500.0,0.00015473,2]
[404265927,1770016245557,-500.0,0.00015473,2]
[404265928,1770016245567,-500.0,0.00015473,2]
[404265929,1770016245576,-500.0,0.00015473,2]
[404265930,1770016245586,-500.0,0.00015473,2]
[404265931,1770016245595,-500.0,0.00015473,2]
[404265932,1770016245604,-500.0,0.00015473,2]
[404265933,1770016245615,-500.0,0.00015473,2]
[404265934,1770016245625,-500.0,0.00015473,2]
[404265935,1770016245636,-500.0,0.00015473,2]
[404265936,1770016245646,-500.0,0.00015473,2]
[404265937,1770016245655,-500.0,0.00015473,2]
[404265938,1770016245666,-550.09529227,0.00015473,2]
[404265939,1770016245675,-500.0,0.00015473,2]
[404265940,1770016245685,-291.61164288,0.00015473,2]
[404265941,1770016245695,-500.0,0.00015473,2]
[404265942,1770016245705,-500.0,0.00015473,2]
[404265943,1770016245715,-1000.0,0.00015499,2]
[404265944,1770016245724,-200.0,0.000155,2]
[404265945,1770016245734,-200.0,0.000155,2]
[404265946,1770016245744,-151.49674582,0.00015601,2]
[404265947,1770016245754,-174.61919141,0.00015601,2]
[404265948,1770016245764,-578.20924308,0.00015601,2]
[404265949,1770016245774,-151.0,0.00015601,2]
[404265950,1770016245783,-250.0,0.00015601,2]
[404265951,1770016245793,-151.0,0.00015601,2]
[404265952,1770016245803,-250.0,0.00015601,2]
[404265953,1770016245813,-151.0,0.00015601,2]
[404265954,1770016245823,-250.0,0.00015601,2]
[404265955,1770016245833,-151.0,0.00015601,2]
[404265956,1770016245843,-250.0,0.00015601,2]
[404265957,1770016245853,-1428.38747117,0.00015601,2]
[404265958,1770016245864,-151.0,0.00015601,2]
[404265959,1770016245874,-250.0,0.00015601,2]
[404265960,1770016245884,-500.0,0.00015601,2]
[404265961,1770016245894,-151.0,0.00015601,2]
[404265962,1770016245904,-500.0,0.00015601,2]
[404265963,1770016245914,-250.0,0.00015601,2]
[404265964,1770016245923,-151.0,0.00015601,2]
[404265965,1770016245933,-500.0,0.00015601,2]
[404265966,1770016245943,-151.0,0.00015601,2]
[404265967,1770016245952,-500.0,0.00015601,2]
[404265968,1770016245962,-151.0,0.00015601,2]
[404265969,1770016245971,-500.0,0.00015601,2]
[404265970,1770016245980,-151.0,0.00015601,2]
[404265971,1770016245990,-500.0,0.00015601,2]
[404265973,1770016245999,-151.0,0.00015601,2]
[404265974,1770016246009,-250.0,0.00015601,2]
[404265975,1770016246019,-500.0,0.00015601,2]
[404265976,1770016246028,-250.0,0.00015601,2]
[404265977,1770016246037,-500.0,0.00015601,2]
[404265978,1770016246047,-250.0,0.00015601,2]
[404265979,1770016246056,-500.0,0.00015601,2]
[404265980,1770016246066,-250.0,0.00015601,2]
[404265981,1770016246075,-500.0,0.00015601,2]
[404265982,1770016246084,-500.0,0.00015601,2]
[404265983,1770016246094,-209.40437684,0.00015601,2]
[404265984,1770016246103,-250.0,0.00015601,2]
[404265985,1770016246113,-209.40437684,0.00015601,2]
[404265986,1770016246123,-250.0,0.00015601,2]
[404265987,1770016246134,-500.0,0.00015601,2]
[404265988,1770016246143,-250.0,0.00015601,2]
[404265989,1770016246152,-500.0,0.00015601,2]
[404265990,1770016246161,-500.0,0.00015601,2]
[404265991,1770016246171,-250.0,0.00015601,2]
[404265992,1770016246179,-500.0,0.00015601,2]
[404265993,1770016246190,-250.0,0.00015601,2]
[404265994,1770016246199,-500.0,0.00015601,2]
[404265995,1770016246207,-209.40437684,0.00015601,2]
[404265996,1770016246217,-500.0,0.00015601,2]
[404265997,1770016246226,-250.0,0.00015601,2]
[404265998,1770016246235,-500.0,0.00015601,2]
[404265999,1770016246245,-500.0,0.00015601,2]
[404266000,1770016246254,-250.0,0.00015601,2]
[404266001,1770016246264,-500.0,0.00015601,2]
[404266002,1770016246274,-250.0,0.00015601,2]
[404266003,1770016246283,-250.0,0.00015601,2]
[404266004,1770016246292,-500.0,0.00015601,2]
[404266005,1770016246301,-250.0,0.00015601,2]
[404266006,1770016246311,-500.0,0.00015601,2]
[404266007,1770016246321,-500.0,0.00015601,2]
[404266008,1770016246330,-250.0,0.00015601,2]
[404266009,1770016246340,-500.0,0.00015601,2]
[404266010,1770016246350,-500.0,0.00015601,2]
[404266011,1770016246359,-500.0,0.00015601,2]
[404266012,1770016246369,-500.0,0.00015601,2]
[404266013,1770016246382,-250.0,0.00015601,2]
[404266014,1770016246391,-500.0,0.00015601,2]
[404266015,1770016246400,-500.0,0.00015601,2]
[404266016,1770016246409,-250.0,0.00015601,2]
[404266017,1770016246419,-344.38825217,0.00015601,2]
[404266018,1770016246428,-500.0,0.00015601,2]
[404266019,1770016246441,-250.0,0.00015601,2]
[404266020,1770016246451,-250.0,0.00015601,2]
[404266021,1770016246460,-500.0,0.00015601,2]
[404266022,1770016246469,-250.0,0.00015601,2]
[404266023,1770016246480,-250.0,0.00015601,2]
[404266024,1770016246489,-500.0,0.00015601,2]
[404266025,1770016246498,-250.0,0.00015601,2]
[404266026,1770016246508,-250.0,0.00015601,2]
[404266027,1770016246517,-250.0,0.00015601,2]
[404266028,1770016246526,-250.0,0.00015601,2]
[404266029,1770016246535,-250.0,0.00015601,2]
[404266030,1770016246544,-250.0,0.00015601,2]
[404266031,1770016246554,-250.0,0.00015601,2]
[404266032,1770016246563,-250.0,0.00015601,2]
[404266033,1770016246573,-250.0,0.00015601,2]
[404266034,1770016246582,-250.0,0.00015601,2]
[404266035,1770016246591,-250.0,0.00015601,2]
[404266036,1770016246601,-250.0,0.00015601,2]
[404266037,1770016246611,-250.0,0.00015601,2]
[404266039,1770016246620,-250.0,0.00015601,2]
[404266041,1770016246632,-250.0,0.00015601,2]
[404266043,1770016246642,-322.6107,0.00015601,2]
[404266045,1770016246651,-250.0,0.00015601,2]
[404266047,1770016246661,-168.90333538,0.00015601,2]
[404266049,1770016246671,-721.12765535,0.00015601,2]
[404266051,1770016246680,-859.80605061,0.00015601,2]
[404266053,1770016246690,-17645.90462732,0.00015616,2]
[404266055,1770016246699,-500.0,0.00015616,2]
[404266057,1770016246709,-1286.37746061,0.00015616,2]
[404266059,1770016246718,-428.50325514,0.00015616,2]
[404266061,1770016246729,-17407.12051915,0.00015629,2]
[404266063,1770016246739,-200.0,0.00015655,2]
[404266065,1770016246748,-200.0,0.00015655,2]
[404266067,1770016246757,-217.15233878,0.00015656,2]
[404266069,1770016246767,-225.18697532,0.00015711,2]
[404266072,1770016246776,-233.51889341,0.00015766,2]
[404266074,1770016246786,-509.21763744,0.00015771,2]
[404266075,1770016246795,-284.66,0.00015792,2]
[404266078,1770016246805,-200.0,0.00015812,2]
[404266080,1770016246815,-200.0,0.00015812,2]
[404266082,1770016246824,-242.15909246,0.00015821,2]
[404266084,1770016246833,-166.66,0.00015831,2]
[404266086,1770016246843,-251.11897888,0.00015876,2]
[404266088,1770016246852,-1600.0,0.00015927,2]
[404266090,1770016246862,-260.4103811,0.00015931,2]
[404266092,1770016246871,-200.0,0.0001597,2]
[404266094,1770016246884,-200.0,0.0001597,2]
[404266096,1770016246893,-270.0455652,0.00015986,2]
[404266098,1770016246903,-500.0,0.0001602,2]
[404266100,1770016246912,-1000.0,0.00016021,2]
[404266102,1770016246922,-1000.0,0.00016021,2]
[404266104,1770016246931,-501.94112039,0.00016021,2]
[404266106,1770016246941,-1000.0,0.00016021,2]
[404266108,1770016246950,-1000.0,0.00016021,2]
[404266110,1770016246960,-1003.27979337,0.00016021,2]
[404266112,1770016246969,-1000.0,0.00016021,2]
[404266114,1770016246978,-1018.80564021,0.00016021,2]
[404266116,1770016246987,-1000.0,0.00016021,2]
[404266118,1770016246996,-502.28798495,0.00016021,2]
[404266120,1770016247005,-1000.0,0.00016021,2]
[404266122,1770016247015,-1000.0,0.00016021,2]
[404266124,1770016247024,-1000.0,0.00016021,2]
[404266126,1770016247034,-1000.0,0.00016021,2]
[404266128,1770016247044,-1000.0,0.00016021,2]
[404266130,1770016247053,-1000.0,0.00016021,2]
[404266132,1770016247062,-1000.0,0.00016021,2]
[404266134,1770016247071,-586.45296103,0.00016021,2]
[404266136,1770016247080,-899.10712823,0.00016021,2]
[404266138,1770016247090,-1000.0,0.00016021,2]
[404266140,1770016247099,-501.09302375,0.00016021,2]
[404266141,1770016247108,-501.08336444,0.00016021,2]
[404266144,1770016247118,-1000.0,0.00016021,2]
[404266145,1770016247127,-1003.91068608,0.00016021,2]
[404266148,1770016247139,-1000.0,0.00016021,2]
[404266150,1770016247149,-1000.0,0.00016021,2]
[404266151,1770016247158,-501.89927416,0.00016021,2]
[404266152,1770016247168,-1000.0,0.00016021,2]
[404266153,1770016247177,-1000.0,0.00016021,2]
[404266154,1770016247187,-1000.0,0.00016021,2]
[404266155,1770016247197,-1000.0,0.00016021,2]
[404266156,1770016247206,-1000.0,0.00016021,2]
[404266157,1770016247215,-1000.0,0.00016021,2]
[404266158,1770016247225,-1003.56149344,0.00016021,2]
[404266159,1770016247235,-1000.0,0.00016021,2]
[404266160,1770016247245,-1000.0,0.00016021,2]
[404266161,1770016247255,-987.31307274,0.00016021,2]
[404266162,1770016247265,-1000.0,0.00016021,2]
[404266163,1770016247274,-280.03725112,0.00016041,2]
[404266164,1770016247284,-290.39862941,0.00016096,2]
[404266165,1770016247293,-3412.42,0.00016116,2]
[404266166,1770016247303,-200.0,0.00016129,2]
[404266167,1770016247312,-200.0,0.00016129,2]
[404266168,1770016247322,-181.08010149,0.00016149,2]
[404266169,1770016247332,-1481.23780761,0.00016149,2]
[404266170,1770016247341,-217.15233878,0.00016149,2]
[404266171,1770016247408,-217.15233878,0.00016149,2]
[404266172,1770016247418,-891.61887448,0.00016149,2]
[404266173,1770016247427,-301.1433787,0.00016151,2]
[404266174,1770016247441,-166.66,0.00016164,2]
[404266175,1770016247449,-160.02702936,0.00016286,2]
[404266176,1770016247458,-17407.12051915,0.00016316,2]
[404266177,1770016247467,-245.11593114,0.00016321,2]
[404266178,1770016247477,-419.25,0.00016396,2]
[404266179,1770016247487,-163.0,0.000164,2]
[404266180,1770016247497,-839.0,0.000164,2]
[404266181,1770016247506,-163.0,0.000164,2]
[404266182,1770016247517,-163.0,0.000164,2]
[404266183,1770016247526,-835.0,0.000164,2]
[404266184,1770016247535,-163.0,0.000164,2]
[404266185,1770016247545,-155.0,0.00016437,2]
[404266186,1770016247554,-1872.11781497,0.00016438,2]
[404266187,1770016247563,-500.0,0.00016438,2]
[404266188,1770016247572,-419.34493254,0.00016438,2]
[404266189,1770016247582,-1752.70233085,0.00016438,2]
[404266190,1770016247591,-1752.70233085,0.00016438,2]
[404266191,1770016247600,-1752.70233085,0.00016438,2]
[404266192,1770016247609,-1752.70233085,0.00016438,2]
[404266193,1770016247619,-1752.70233085,0.00016438,2]
[404266194,1770016247630,-1752.70233085,0.00016438,2]
[404266195,1770016247639,-1752.70233085,0.00016438,2]
[404266196,1770016247648,-1752.70233085,0.00016438,2]
[404266197,1770016247657,-1752.70233085,0.00016438,2]
[404266198,1770016247667,-1752.70233085,0.00016438,2]
[404266199,1770016247676,-1752.70233085,0.00016438,2]
[404266200,1770016247686,-1752.70233085,0.00016438,2]
[404266201,1770016247695,-1752.70233085,0.00016438,2]
[404266202,1770016247704,-1752.70233085,0.00016438,2]
[404266203,1770016247713,-1752.70233085,0.00016438,2]
[404266204,1770016247723,-1752.70233085,0.00016438,2]
[404266205,1770016247732,-1752.70233085,0.00016438,2]
[404266206,1770016247741,-1752.70233085,0.00016438,2]
[404266207,1770016247750,-1752.70233085,0.00016438,2]
[404266208,1770016247759,-1752.70233085,0.00016438,2]
[404266209,1770016247769,-1752.70233085,0.00016438,2]
[404266210,1770016247778,-1752.70233085,0.00016438,2]
[404266211,1770016247787,-1752.70233085,0.00016438,2]
[404266212,1770016247796,-1752.70233085,0.00016438,2]
[404266213,1770016247805,-1752.70233085,0.00016438,2]
[404266214,1770016247814,-1752.70233085,0.00016438,2]
[404266215,1770016247823,-1752.70233085,0.00016438,2]
[404266216,1770016247838,-1752.70233085,0.00016438,2]
[404266217,1770016247849,-1752.70233085,0.00016438,2]
[404266218,1770016247859,-1752.70233085,0.00016438,2]
[404266219,1770016247869,-1752.70233085,0.00016438,2]
[404266220,1770016247880,-1752.70233085,0.00016438,2]
[404266221,1770016247890,-1752.70233085,0.00016438,2]
[404266222,1770016247900,-1752.70233085,0.00016438,2]
[404266223,1770016247909,-1752.70233085,0.00016438,2]
[404266224,1770016247918,-1752.70233085,0.00016438,2]
[404266225,1770016247928,-1752.70233085,0.00016438,2]
[404266226,1770016247938,-1752.70233085,0.00016438,2]
[404266227,1770016247948,-1752.70233085,0.00016438,2]
[404266228,1770016247958,-1752.70233085,0.00016438,2]
[404266229,1770016247968,-1752.70233085,0.00016438,2]
[404266230,1770016247977,-1752.70233085,0.00016438,2]
[404266231,1770016247987,-1752.70233085,0.00016438,2]
[404266232,1770016247996,-1752.70233085,0.00016438,2]
[404266233,1770016248005,-1752.70233085,0.00016438,2]
[404266234,1770016248017,-1717.64828423,0.00016438,2]
[404266235,1770016248026,-1717.64828423,0.00016438,2]
[404266236,1770016248036,-1717.64828423,0.00016438,2]
[404266237,1770016248045,-1717.64828423,0.00016438,2]
[404266238,1770016248055,-1717.64828423,0.00016438,2]
[404266239,1770016248064,-1717.64828423,0.00016438,2]
[404266240,1770016248074,-1717.64828423,0.00016438,2]
[404266241,1770016248084,-1717.64828423,0.00016438,2]
[404266242,1770016248094,-1717.64828423,0.00016438,2]
[404266243,1770016248104,-1717.64828423,0.00016438,2]
[404266244,1770016248114,-1717.64828423,0.00016438,2]
[404266245,1770016248123,-1717.64828423,0.00016438,2]
[404266246,1770016248134,-1717.64828423,0.00016438,2]
[404266247,1770016248145,-1717.64828423,0.00016438,2]
[404266248,1770016248157,-1717.64828423,0.00016438,2]
[404266249,1770016248167,-1717.64828423,0.00016438,2]
[404266250,1770016248176,-1717.64828423,0.00016438,2]
[404266251,1770016248186,-1717.64828423,0.00016438,2]
[404266252,1770016248195,-1717.64828423,0.00016438,2]
[404266253,1770016248210,-1717.64828423,0.00016438,2]
[404266254,1770016248220,-1717.64828423,0.00016438,2]
[404266255,1770016248231,-1717.64828423,0.00016438,2]
[404266256,1770016248241,-1717.64828423,0.00016438,2]
[404266257,1770016248250,-1717.64828423,0.00016438,2]
[404266258,1770016248260,-1717.64828423,0.00016438,2]
[404266259,1770016248270,-1717.64828423,0.00016438,2]
[404266260,1770016248280,-1717.64828423,0.00016438,2]
[404266261,1770016248289,-1717.64828423,0.00016438,2]
[404266262,1770016248298,-1717.64828423,0.00016438,2]
[404266263,1770016248308,-1717.64828423,0.00016438,2]
[404266264,1770016248317,-1717.64828423,0.00016438,2]
[404266265,1770016248327,-1717.64828423,0.00016438,2]
[404266266,1770016248336,-1717.64828423,0.00016438,2]
[404266267,1770016248346,-1717.64828423,0.00016438,2]
[404266268,1770016248356,-1721.55203033,0.00016438,2]
[404266269,1770016248366,-1721.55203033,0.00016438,2]
[404266270,1770016248376,-1721.55203033,0.00016438,2]
[404266271,1770016248387,-1721.55203033,0.00016438,2]
[404266272,1770016248397,-1721.55203033,0.00016438,2]
[404266273,1770016248406,-1721.55203033,0.00016438,2]
[404266274,1770016248416,-1721.55203033,0.00016438,2]
[404266275,1770016248426,-1721.55203033,0.00016438,2]
[404266276,1770016248436,-1721.55203033,0.00016438,2]
[404266277,1770016248449,-1721.55203033,0.00016438,2]
[404266278,1770016248458,-1721.55203033,0.00016438,2]
[404266279,1770016248468,-250.55733734,0.00016438,2]
[404266280,1770016248479,-800.78453244,0.00016438,2]
[404266281,1770016248488,-500.0,0.00016495,2]
[404266282,1770016248497,-166.66,0.00016498,2]
[404266283,1770016248507,-1500.0,0.00016568,2]
[404266284,1770016248519,-1004.26216588,0.00016568,2]
[404266285,1770016248529,-1500.0,0.00016568,2]
[404266286,1770016248539,-622.87168328,0.00016568,2]
[404266287,1770016248549,-1500.0,0.00016568,2]
[404266288,1770016248559,-343.08326797,0.00016568,2]
[404266289,1770016248569,-665.40489721,0.00016568,2]
[404266290,1770016248583,-1500.0,0.00016568,2]
[404266291,1770016248593,-1500.0,0.00016568,2]
[404266292,1770016248602,-1500.0,0.00016568,2]
[404266293,1770016248613,-1500.0,0.00016568,2]
[404266294,1770016248622,-1500.0,0.00016568,2]
[404266295,1770016248633,-240.83933027,0.00016568,2]
[404266296,1770016248643,-505.45817911,0.00016568,2]
[404266297,1770016248654,-1500.0,0.00016568,2]
[404266298,1770016248663,-1500.0,0.00016568,2]
[404266299,1770016248673,-545.1454494,0.00016568,2]
[404266300,1770016248683,-1005.24936027,0.00016568,2]
[404266301,1770016248694,-505.38162593,0.00016568,2]
[404266302,1770016248704,-1005.54193795,0.00016568,2]
[404266303,1770016248714,-1500.0,0.00016568,2]
[404266304,1770016248724,-1500.0,0.00016568,2]
[404266305,1770016248734,-1500.0,0.00016568,2]
[404266306,1770016248745,-504.6853335,0.00016568,2]
[404266307,1770016248755,-776.88278142,0.00016568,2]
[404266308,1770016248766,-1500.0,0.00016568,2]
[404266309,1770016248776,-500.0,0.00016603,2]
[404266310,1770016248786,-245.19,0.00016631,2]
[404266311,1770016248795,-187.78006525,0.00016697,2]
[404266312,1770016248805,-1536.04360649,0.00016697,2]
[404266313,1770016248815,-225.18697532,0.00016697,2]
[404266314,1770016248824,-225.18697532,0.00016697,2]
[404266315,1770016248834,-924.60877284,0.00016697,2]
[404266316,1770016248844,-2835.0,0.0001672,2]
[404266317,1770016248854,-839.0,0.0001672,2]
[404266318,1770016248864,-163.0,0.0001672,2]
[404266319,1770016248874,-839.0,0.0001672,2]
[404266320,1770016248885,-839.0,0.0001672,2]
[404266321,1770016248895,-320.0,0.0001672,2]
[404266322,1770016248905,-868.9,0.00016731,2]
[404266323,1770016248915,-305.66548204,0.00016733,2]
[404266324,1770016248925,-1500.0,0.000168,2]
[404266325,1770016248935,-1000.0,0.00016816,2]
[404266326,1770016248948,-166.66,0.00016831,2]
[404266327,1770016248958,-509.21763744,0.00016835,2]
[404266328,1770016248968,-500.0,0.00016877,2]
[404266329,1770016248978,-403.0,0.00016889,2]
[404266330,1770016248988,-10091.57601831,0.00016937,2]
[404266331,1770016248998,-160.02702936,0.00016965,2]
[404266332,1770016249007,-334.5472959,0.0001697,2]
[404266333,1770016249017,-300.0,0.00017,2]
[404266334,1770016249026,-151.7199758,0.00017,2]
[404266335,1770016249036,-17407.12051915,0.00017002,2]
[404266336,1770016249046,-989.28,0.00017005,2]
[404266337,1770016249057,-773.23,0.00017032,2]
[404266338,1770016249066,-163.0,0.0001704,2]
[404266339,1770016249076,-1899.6725397,0.00017092,2]
[404266340,1770016249086,-1008.230722,0.00017116,2]
[404266341,1770016249096,-2128.18837233,0.00017116,2]
[404266342,1770016249106,-1474.64879752,0.00017116,2]
[404266343,1770016249116,-1143.18674336,0.00017116,2]
[404266344,1770016249126,-315.28060531,0.00017116,2]
[404266345,1770016249138,-2000.0,0.00017116,2]
[404266346,1770016249150,-2000.0,0.00017116,2]
[404266347,1770016249160,-2000.0,0.00017116,2]
[404266348,1770016249170,-1756.98671009,0.00017116,2]
[404266349,1770016249180,-1988.36339388,0.00017116,2]
[404266350,1770016249190,-2000.0,0.00017116,2]
[404266351,1770016249200,-1006.20015718,0.00017116,2]
[404266352,1770016249210,-2000.0,0.00017116,2]
[404266353,1770016249219,-1189.68040771,0.00017116,2]
[404266354,1770016249229,-925.751,0.00017159,2]
[404266355,1770016249239,-1205.0,0.00017159,2]
[404266356,1770016249249,-2445.0,0.00017159,2]
[404266357,1770016249259,-3253.0,0.00017159,2]
[404266358,1770016249268,-6579.0,0.00017159,2]
[404266359,1770016249278,-284.66,0.00017162,2]
[404266360,1770016249288,-166.66,0.00017164,2]
[404266361,1770016249298,-3521.0,0.00017202,2]
[404266362,1770016249307,-194.72792766,0.00017245,2]
[404266363,1770016249317,-1592.87721993,0.00017245,2]
[404266364,1770016249327,-233.51889341,0.00017245,2]
[404266365,1770016249337,-233.51889341,0.00017245,2]
[404266366,1770016249347,-277.94807481,0.00017245,2]
[404266367,1770016249361,-1000.0,0.0001726,2]
[404266368,1770016249371,-3521.0,0.00017293,2]
[404266369,1770016249381,-773.47,0.00017306,2]
[404266370,1770016249391,-839.0,0.0001736,2]
[404266371,1770016249401,-163.0,0.0001736,2]
[404266372,1770016249411,-163.0,0.0001736,2]
[404266373,1770016249421,-163.0,0.0001736,2]
[404266374,1770016249431,-163.0,0.0001736,2]
[404266375,1770016249444,-1600.0,0.00017375,2]
[404266376,1770016249454,-1500.0,0.000174,2]
[404266377,1770016249464,-4993.0,0.00017461,2]
[404266378,1770016249475,-166.66,0.00017498,2]
[404266379,1770016249485,-3392.25741814,0.000175,2]
[404266380,1770016249495,-1000.0,0.00017534,2]
[404266381,1770016249505,-3012.2001319,0.0001764,2]
[404266382,1770016249516,-160.02702936,0.00017643,2]
[404266383,1770016249526,-500.0,0.00017644,2]
[404266384,1770016249536,-947.23523297,0.00017664,2]
[404266385,1770016249547,-1002.53462592,0.00017664,2]
[404266386,1770016249558,-502.76473862,0.00017664,2]
[404266387,1770016249569,-1216.63993214,0.00017664,2]
[404266388,1770016249581,-1504.86417643,0.00017664,2]
[404266389,1770016249592,-839.0,0.0001768,2]
[404266390,1770016249603,-163.0,0.0001768,2]
[404266391,1770016249613,-17407.12051915,0.00017688,2]
[404266392,1770016249624,-2844.0,0.000177,2]
[404266393,1770016249637,-25000.0,0.00017724,3]
[404266394,1770016249648,-25000.0,0.00017733,3]
[404266395,1770016249659,-4832.0,0.00017736,2]
[404266396,1770016249670,-4832.0,0.00017738,2]
[404266397,1770016249681,-500.0,0.00017741,2]
[404266398,1770016249691,-25000.0,0.00017742,3]
[404266399,1770016249702,-4832.0,0.00017748,2]
[404266400,1770016249713,-25000.0,0.0001775,3]
[404266401,1770016249725,-10643.0,0.00017753,2]
[404266402,1770016249746,-25000.0,0.00017759,3]
[404266403,1770016249764,-25000.0,0.00017768,3]
[404266404,1770016249775,-4832.0,0.00017775,2]
[404266405,1770016249786,-25000.0,0.00017777,3]
[404266406,1770016249798,-25000.0,0.00017786,3]
[404266407,1770016249810,-267.0,0.00017788,2]
[404266408,1770016249822,-151.0,0.00017788,2]
[404266409,1770016249833,-150.0,0.00017788,2]
[404266410,1770016249845,-200.0,0.00017788,2]
[404266411,1770016249857,-229.207,0.00017788,2]
[404266412,1770016249869,-277.537,0.00017788,2]
[404266413,1770016249880,-196.165,0.00017788,2]
[404266414,1770016249892,-165.436,0.00017788,2]
[404266415,1770016249904,-158.676,0.00017788,2]
[404266416,1770016249915,-199.072,0.00017788,2]
[404266417,1770016249928,-285.665,0.00017788,2]
[404266418,1770016249939,-151.345,0.00017788,2]
[404266419,1770016249950,-151.0,0.00017788,2]
[404266420,1770016249962,-1410.0,0.00017788,2]
[404266421,1770016249973,-1338.357,0.00017788,2]
[404266422,1770016249984,-3481.0,0.00017788,2]
[404266423,1770016249996,-728.464,0.00017788,2]
[404266424,1770016250007,-162.264,0.00017788,2]
[404266425,1770016250019,-161.033,0.00017788,2]
[404266426,1770016250030,-1278.693,0.00017788,2]
[404266427,1770016250041,-201.93286099,0.00017793,2]
[404266428,1770016250052,-1651.81367706,0.00017793,2]
[404266429,1770016250062,-260.62456749,0.00017793,2]
[404266430,1770016250074,-242.15909246,0.00017793,2]
[404266431,1770016250085,-25000.0,0.00017794,3]
[404266432,1770016250096,-25000.0,0.00017803,3]
[404266433,1770016250107,-500.0,0.00017808,2]
[404266434,1770016250117,-1000.0,0.00017808,2]
[404266435,1770016250128,-500.0,0.00017811,2]
[404266436,1770016250140,-25000.0,0.00017812,3]
[404266437,1770016250152,-25000.0,0.00017821,3]
[404266438,1770016250163,-25000.0,0.0001783,3]
[404266439,1770016250173,-4993.0,0.00017832,2]
[404266440,1770016250184,-207.0,0.00017836,2]
[404266441,1770016250195,-25000.0,0.00017838,3]
[404266442,1770016250206,-25000.0,0.00017847,3]
[404266443,1770016250216,-279.5,0.00017849,2]
[404266444,1770016250227,-200.0,0.00017855,2]
[404266445,1770016250238,-25000.0,0.00017856,3]
[404266446,1770016250249,-200.0,0.00017856,2]
[404266447,1770016250260,-200.0,0.00017856,2]
[404266448,1770016250270,-500.0,0.00017863,2]
[404266449,1770016250281,-25000.0,0.00017865,3]
[404266450,1770016250292,-25000.0,0.00017874,3]
[404266451,1770016250303,-163.0,0.00017875,2]